Workbook

Sheet Maanvaraiset pihat
A1: Selitteet: | B1: Rivilaskuri | C1: Pinta-ala | D1: 1: 30–70%; 0,4: 10–<30%; 0,1: 0% | E1: 1: Eri-ikäistä, osin lajityypillisen vanhaa; 0,1: ei puustoa / vain vieraspuu-nuoret | F1: 1: Viisi piirrettä; 0,4–0,5: 1–2 piirrettä; 0,1: ei | G1: 1: monikerroksellinen (≥4); 0,8: 3 kerrosta, 0,5: 2 kerrosta; 0,1: 1 kerros | H1: 1: järeää & monilajista runsaasti; 0,3: niukasti; 0,1: ei | I1: 1: ei haitallisia; 0,8: yksittäisiä; 0,3: useita; 0,1: alue laajalti
A2: Kuvio (ID) | B2: Rivi # | C2: Kuvion pinta-ala ha | D2: Latvuspeittävyys | E2: Puuston rakenne | F2: Kasvillisuus | G2: Kasvillisuuden kerroksellisuus | H2: Lahopuun määrä | I2: Haitalliset vieraskasvilajit | J2: Lisätietoja | K2: Ekologinen tila (keskiarvo)
A3: 189 | B3: =ROW()-2 -> 1 | C3: 1.7 | D3: 1 | E3: 1 | F3: 1 | G3: 0.8 | H3: 0.3 | I3: 0.1 | J3: Koivumäen kartanon entinen torppa, itsenäistynyt 1924. Vapaa-ajan käytössä, piha-alue hoidettu. Hyvää (niitty)lajistoa ja edustava puusto, mutta vieraslajeja runsaasti. Raparperi päärakennuksen seinustalla mahdollisesti vanhaa kantaa ulkonäön perusteella (voisi kiinnostaa LUKE:n tutkijoita). | K3: =AVERAGE(D3:I3) -> 0.7

Sheet Ruderaatit
A1: Selitteet: | B1: Rivilaskuri | C1: Pinta-ala | D1: 1: neljä piirrettä; 0,7: kolme; 0,6: kaksi; 0,4: yksi; 0,1: ei | E1: 1: kolme piirrettä; 0,6: kaksi; 0,4: yksi; 0,1: ei | F1: 1: pilaantumatonta, ei roskaa; 0,5: kunnostettu/hallinnassa; 0,1: selvästi pilaantunut/erittäin roskaantunut | G1: 1: ei haitallisia; 0,8: yksittäisiä; 0,3: useita; 0,1: alue laajalti
A2: Kuvio (ID) | B2: Rivi # | C2: Kuvion pinta-ala ha | D2: Rakennepiirteet | E2: Kasvillisuus | F2: Maaperän pilaantuneisuus / roskaantuneisuus | G2: Haitalliset vieraskasvilajit | H2: Lisätietoja | I2: Ekologinen tila (keskiarvo)
A3: 29 | B3: =ROW()-2 -> 1 | C3: 0.2 | D3: 0.8 | E3: 0.7 | F3: 1 | G3: 0.9 | H3: tuoretta maansiirtoa, hulevesijärjestelyä ja vallia teollisuustontin ympärillä (ei voi olla varmuutta pima-asioista) | I3: =AVERAGE(D3:G3) -> 0.85
A4: 130 | B4: 2 | C4: 15.1 | D4: 0.7 | E4: 0.4 | F4: 0.4 | G4: 0.1 | H4: Täyttömäki vanhan kaatopaikan päällä, pima-asioista ei tarkempaa tietoa. Avointa, pensaikkoa kehittynyt varsinkin kuvion laitamille missä myös kookkaampaa lehtipuustoa. Runsaasti haitallisia vieraskasvilajeja: jättiputkia, jättipalsamia, komealupiinia, kurtturuusua, isosorsimoa, japanintatarta, karhunköynnöstä. Rakennelmia, ihmistoimintaa (pieni moottorirata, robottiruohonleikkuri ym.). | I4: =AVERAGE(D4:G4) -> 0.4
A5: 190 | B5: 3 | C5: 2.7 | D5: 0.9 | E5: 0.5 | F5: 0.3 | G5: 0.2 | H5: Epämääräinen varastointi ja maanläjitysalue Kiviharjun S-puolella. Paljon kivirakennusmateriaaleja, muita rakennusmateriaaleja ja sekalaista jätettä. Osa maavalleista jo pensoittunut ja alueen laidat rehevää ruderaattilehtoa. Keskiosa avointa, osin paahteista mineraalimaata, ei merkittäviä lajeja. Komealupiini runsas. Mielenkiintoisia tyräruoho, tyrni, harmio, tierasammalta laajalti. | I5: =AVERAGE(D5:G5) -> 0.475
A6: 191 | B6: 4 | C6: 13.7 | D6: 0.7 | E6: 0.8 | F6: 0.2 | G6: 0.1 | H6: Kiviharjun varastointialue, pieniä tontteja, varastokontteja, autonromuja ja kaikenlasta jätettä ja varastorakennelmia. Metsäiset osat erittäin rehevää suurruoholehtoa. Paljon haitallisia vieraslajeja. Kamomillasaunio ja jättihelokki mielenkiintoisia. | I6: =AVERAGE(D6:G6) -> 0.45
A7: 361 | B7: 5 | C7: 2.6 | D7: 1 | E7: 0.7 | F7: 0.9 | G7: 0.3 | H7: Komealupiiniesiintymiä, W-puolella niittykasvillisuutta ja pensaikkoa, E-puolella mm. silmäruohoja ja paljasta mineraalimaata eri raeko´oissa. | I7: 0.725
A8: 443 | B8: 6 | C8: 0.4 | D8: 0.5 | E8: 0.5 | F8: 0.7 | G8: 1 | H8: Sora/sepeli/hiekkakenttä, hiljalleen käynnistymässä kasvillisuuden invaasio. Ei tietoa maa-ainesten mahdollisesta pilaantuneisuudesta. Hieman roskaa. Ollut jonkinlainen varastoalue? Rakennukset ja aita poistettu hiljan. | I8: 0.675
A9: 462 | B9: 7 | C9: 1.3 | D9: 0.5 | E9: 0.8 | F9: 0.6 | G9: 0.7 | H9: Maa-aineksen pilaantuneisuudesta ei tietoa. | I9: 0.65
C10: =SUM(C3:C9) -> 36

Sheet Uusniityt
A1: Selitteet: | B1: Rivilaskuri | D1: 1: 4–5 piirrettä; 0,7: 3; 0,5: 2; 0,4: 1; 0,1: ei | E1: 1: ≥2 piirrettä; 0,8: 1; 0,1: ei | F1: 1: 4 + merkittävä lajisto; 0,9: 4 ilman merkittävyyttä; 0,8: 3; 0,6: 2; 0,4: 1; 0,1: ei | G1: 1: 4 piirrettä; 0,7: 3; 0,5: 2; 0,2: 1; 0,1: ei | H1: 1: ei; 0,8: yksittäisiä; 0,3: useita; 0,1: alue laajalti
A2: Kuvio (ID) | B2: Rivi # | C2: Kuvion pinta-ala ha | D2: Kuivan uusniityn rakennepiirteet | E2: Kostean/tuoreen uusniityn rakennepiirteet | F2: Kasvillisuus ja huomionarvoinen lajisto | G2: Puuston rakennepiirteet – vain puustoisilla | H2: Haitalliset vieraskasvilajit | I2: Lisätietoja | J2: Ekologinen tila (keskiarvo)
A3: 114 | B3: =ROW()-2 -> 1 | C3: 0.15 | D3: 0.7 | F3: 1 | H3: 0.6 | I3: Luonnonsuojelualue, ERA Pitkälahti (ketonukki). Puustoa ja taimikkoa raivattu hiljan, pyrkimys pitää avoimena. Kuivaa niittyä ratapenkan jyrkässä rinteessä, avautuu itäkoilliseen, yläosissa paahteisuutta. Huopakeltano, viuhkovoikeltano, sarjakeltano, ahokeltanot, ahomansikka, aho-orvokki, kielo, siankärsämö, puna-ailakki, hopeahanhikki, niittyleinikki, metsälauha, ahopukinjuuri, päivänkakkara, hietakastikka, hiirenvirna, niittynätkelmä, heinätähtimö, niittysuolaheinä, keltakannusruoho, syysmaitiainen, koiranputki, kivikonalvejuuri, nuokkuhelmikkä. Haitallinen vieraslaji paimenmatara, joukossa voi olla myös piennarmataraa. Alaosa tasaisemmalla maalla, vadelmikkoa ja rehevän, tuoreen niityn kasvillisuutta. Punavarpunen (NT). Hieman puu- ja metalliromua. Kuvio ei sovi kunnolla uusniityn, eikä liikenneväylien varren RYTY-kriteeristöön! | J3: =AVERAGE(D3:H3) -> 0.7666666667
A4: 115 | B4: 2 | C4: 0.7 | E4: 1 | F4: 0.9 | G4: 0.4 | H4: 0.8 | I4: Tuoreen ja kuivan pienruohoniityn kasvillisuutta ja paljaita maalaikkuja vanhan ratapenkereen länsiluoteeseen aukeavassa jyrkässä rinteessä. Kiviä, kivenkoloja. Hopeahanhikki, kultapiisku, ahomansikka, sarjakeltano, vadelma, pujo, huopavoikeltano, ahopukinjuuri, puna-ailakki, pajujen taimia, haavan taimia. Paimenmataraa, mahd. myös piennarmataraa. Niitetty hiljattain ja raivattu puustoa. Alhaalla oja ja hakkuujätteitä. Sähkölinja kulkee kuviolla Ratapohjan suuntaisesti. Kosteaa ja tuoretta suurruohoniittyä, joka kasvamassa umpeen. Runsaasti haavan taimia ja nuorta haapaa, pihlajaa, rauduskoivua, raitaa, haleppä, vähän kuusia. Muutama vanha raita. Metsäkurjenpolvi, mesiangervo, koiranputki, nurmipuntarpää, maitohorsma, ojakellukka, nokkonen, vadelma, metsäkorte, puna-ailakki, huopaohdake, poimulehdet, karhunputki, punaherukka, koiranheinä. Vain vanhaa ratapenkkaa niitetään? Kuvio ei ole LuTu, eikä RYTY, mutta ihmisvaikutus selkeä ja lähimpänä ehkä uusniittyä, ainakin, mikäli aluetta tarkoitus pitää jatkossa avoimena. | J4: =AVERAGE(E4:H4) -> 0.775
A5: 117 | B5: 3 | C5: 0.3 | E5: 0.8 | F5: 0.9 | G5: 0.4 | H5: 0.8 | I5: Ei pebi, eikä kylvetty uusniitty, syntynyt vanhalle pellolle, ei tietoa mahdollisesta hoitosuunnitelmasta. Peurankelloa, mutta onko kuitenkaan merkittävä huomionarvoiselle lajistolle? Hieman paimenmataraa, yksi lupiini (joka poistettiin maastokartoituksen yhteydessä). Tielle nousevilla luiskilla paljasta maata, sekä haaparyhmä ja puiden taimia. | J5: =AVERAGE(E5:H5) -> 0.725
A6: 118 | B6: 4 | C6: 0.8 | E6: 0.6 | F6: 0.9 | G6: 0.2 | H6: 0.7 | I6: Ei pebi, eikä kylvetty uusniitty, syntynyt vanhalle pellolle, ei tietoa mahdollisesta hoitosuunnitelmasta. Umpeenkasvu jo pitkällä. Rehevän suurruohoniityn kasvillisuus + joitain viljelykasveja (karviainen, herukat) ja runsaasti nuorta puustoa. | J6: =AVERAGE(E6:H6) -> 0.6
A7: 251 | B7: 5 | C7: 0.6 | E7: 0.2 | F7: 0.9 | G7: 0.2 | H7: 0.1 | I7: EI LuTu, eikä Ryty. Entiselle jonkinlaiselle varastoalueelle syntynyt metsittyvä niittymäinen aukea, aiemmin ollut peltoa. Jonkin verran puustoa, lehtomaisuutta. Osin hyvää niittylajistoa ja rehevän lehdon lajistoa, mutta myös runsaasti haitallsia vieraslajeja: jättiputkea, komealupiinia, kurtturuusua ja paimenmataraa. | J7: 0.35
C8: =SUM(C3:C7) -> 2.55

Sheet Liikenneväylien varsien kasv.
A1: Selitteet: | B1: Rivilaskuri | D1: 1: ei umpeenkasvua; 0,7: paikoin; 0,3: voimakasta; 0,1: täysin umpeenkasvanut | E1: 1: kolme piirrettä; 0,7: kaksi; 0,5: yksi; 0,1: ei | F1: 1: runsaasti (~20 m³); 0,7: toista runsaasti, toista vähän; 0,5: vähän; 0,1: ei mitään | G1: 1: ei; 0,8: yksittäisiä; 0,3: useita; 0,1: alue laajalti
A2: Kuvio (ID) | B2: Rivi # | C2: Kuvion koko ha | D2: Avoimuus / Umpeenkasvaneisuus | E2: Kasvillisuus | F2: Lahopuut ja kivikot | G2: Haitalliset vieraskasvilajit | H2: Lisätietoja | I2: Ekologinen tila (keskiarvo)
A3: 116 | B3: =ROW()-2 -> 1 | C3: 0.4 | D3: 0.4 | E3: 0.7 | F3: 0.7 | G3: 0.6 | H3: Potentiaalisia kasvupaikkoja kuivien ja tuoreiden niittyjen lajistolle, hieman paahdeympäristöä. Komealupiini uhkaa, sitä niitetty pois. Hopeahanhikki, niittynätkelmä, hiirenvirna, harakankello, viuhkovoikeltano, päivänkakkara, heinätähtimö, siankärsämö, pietaryrtti, puna-apila, ketohärkki, maitohorsma, hietakastikka. Keskellä nuorta lehtipuustoa, umpeenkasvua laajalti. Kivikkoa melko hyvin. | I3: =AVERAGE(C3:G3) -> 0.56
A4: 120 | B4: 2 | C4: 6.4 | D4: 0.5 | E4: 0.5 | F4: 0.3 | G4: 0.7 | H4: Radanvarren kasvillisuuus. Rata kulkee paikoin ympäristöään korkeammall ja paikoin syvässä kuilussa kallioleikkausten välissä. Osin aidattu. Laaja, vaihteleva kuvio. | I4: =AVERAGE(D4:G4) -> 0.5
A5: 257 | B5: 3 | C5: 0.5 | D5: 0.7 | E5: 1 | F5: 0.1 | G5: 0.9 | H5: Karttulantien niitetty piennar. Hyvää niittylajistoa, vähän paimen/piennarmataraa. Ei vielä komealupiinia, vaikka väijyy lähistöllä. Hyvää niiittylajistoa myös kuviolta etelään Korvaharjun tien varressa. | I5: =AVERAGE(D5:G5) -> 0.675
C6: =SUM(C3:C5) -> 7.3

Sheet Pellot ja avoimet
A1: Selitteet: | B1: Rivilaskuri | D1: Rivilaskuri | E1: 1: 5–6 piirrettä; 0,8: neljä; 0,6: kolme; 0,4: kaksi; 0,2: yksi; 0,1: ei | F1: 1: monipuolinen/monivuotinen; 0,7: maisemapelto; 0,1: tuulipölytteiset yksilajisesti | G1: 1: luomu; 0,1: ei luomu; 0,5: suunnitteilla/laidun ilman lisälannoitusta | H1: 1: ei; 0,8: yksittäisiä; 0,3: useita; 0,1: alue laajalti
A2: Kuvio (ID) | B2: Rivi # | C2: Kuvion koko ha | D2: Rivi # | E2: Rakennepiirteet | F2: Kasvillisuuden monilajisuus | G2: Luonnonmukainen viljely ja lannoitus | H2: Haitalliset vieraskasvilajit | I2: Lisätietoja | J2: Ekologinen tila (keskiarvo)
A3: 127 | B3: =ROW()-2 -> 1 | C3: 3.3 | D3: =ROW()-2 -> 1 | E3: 0.8 | F3: 0.9 | H3: 1 | I3: Hevosia. Ei tietoa luomu-tilanteesta, lainnoituksesta, viljelystä. Hyvää tuoreen ja kostean niityn lajistoa, metsänreunan pellonpientareilla myös hyvää lajistoa. Harvinainen tulokaslaji idännukki kukki pellon eteläreunalla. Korpelan pihapiirissä komealupiinia, ei vielä levinnyt pellolle. | J3: =AVERAGE(E3:H3) -> 0.9
A4: 185 | B4: 2 | C4: 0.4 | D4: 2 | E4: 0.6 | F4: 0.7 | H4: 1 | I4: Rehuheinää koetetaan kasvattaa, ei tietoa luomusta, lannoituksesta. Huonosti lähtenyt kasvuun, pelto muistuttaa enemmän monilajista niittyä. Tuoksusimaketta ja päivänkakkaraa pientareella. | J4: =AVERAGE(E4:H4) -> 0.7666666667
C5: =SUM(C3:C4) -> 3.7

Sheet Pensaikot
A1: Selitteet: | B1: Rivilaskuri | D1: 1: 30–70%; 0,5: >70%; 0,1: — | E1: 1: eri-ikäistä, osin vanhaa; 0,6: vanhaa yhdestä lajista TAI nuorta monilajista; 0,1: intensiivisesti hoidettu yhden lajin nuoret | F1: 1: 4 piirrettä; 0,6: 2; 0,4: 1; 0,1: ei | G1: 1: monikerros (≥3); 0,6: 2; 0,1: 1 | H1: 1: runsaasti (ei korjattu); 0,6: on mutta korjattu; 0,1: ei | I1: 1: ei; 0,8: yksittäisiä; 0,3: useita; 0,1: alue laajalti
A2: Kuvio (ID) | B2: Rivi # | C2: Kuvion koko ha | D2: Pensaston peittävyys | E2: Puuvartisen kasvillisuuden rakenne | F2: Kasvillisuus | G2: Kasvillisuuden kerroksellisuus | H2: Lahopuun määrä | I2: Haitalliset vieraskasvilajit | J2: Lisätietoja | K2: Ekologinen tila (keskiarvo)
A3: 32 | B3: =ROW()-2 -> 1 | C3: 0.4 | D3: 1 | E3: 0.4 | F3: 0.7 | G3: 0.3 | H3: 0.8 | I3: 1 | J3: Teollisuustontin ympärillä olevaa, pääasiassa kaivetun maan kasauksen ja vallin peittävää pensaikkoa; vadelmaa ja pajuja, pieni suokasvillisuuslaikku | K3: =AVERAGE(F3:I3) -> 0.7

Sheet Ihmisen perust. kosteikot
A1: Selitteet: | B1: Rivilaskuri | C1: Pinta-ala | D1: 1: runsaasti suojaavaa kasvillisuutta; 0,5: jonkin verran; 0,1: lähes ei | E1: 1: kaikki 4 piirrettä; 0,8: 3; 0,6: 2; 0,4: 1; 0,1: ei | F1: 1: vettä ympäri vuoden; 0,5: kuivuu joina­kin viikkoina; 0,1: vettä vain hetkittäin | G1: 1: vähän kuormitusta ja paljon läpäisevää; 0,1: voimakkaita kuormituslähteitä, vähän läpäisevää | H1: 1: luonnollinen maalaji; 0,5: osin suodatinkangas tms.; 0,1: koko pohja keinotekoinen | I1: 1: ei; 0,8: yksittäisiä; 0,3: useita; 0,1: alue laajalti
A2: Kuvio (ID) | B2: Rivi # | C2: Kuvion pinta-ala ha | D2: Lähiympäristön tila | E2: Vesi- ja rantakasvillisuus | F2: Veden pysyvyys | G2: Valuma-alue | H2: Pohjan rakenne | I2: Haitalliset vieraskasvilajit | J2: Lisätietoja | K2: Ekologinen tila (keskiarvo)
A3: 44 | B3: =ROW()-2 -> 1 | C3: 0.02 | D3: 0.1 | E3: 0.6 | F3: 0.5 | G3: 0.3 | H3: 0.8 | I3: 0.9 | J3: Ison ja tuoreen teollisuustonttia ympäröivän hulevesikaivuu-uoman pohjalle muodostunut pieni kosteikko; osmankäämiä ja kelluslehtisiä | K3: =AVERAGE(D3:I3) -> 0.5333333333
A4: 131 | B4: 2 | C4: 0.2 | D4: 0.7 | E4: 0.5 | F4: 1 | G4: 0.1 | H4: 0.6 | I4: 0.8 | J4: Vanhan kaatopaikan täyttömäen ja louhoksen väliin muodostunut kosteikko. Veden laatu todennäköisesti erittäin heikko kuormituslähteiden vuoksi, pohjan laadusta ei tietoa. Jonkin verran lahopuuta (pystyyn kuolleet puut). Vehka runsas, suursaroja (ilm. pullo- & pitkäpääsaraa), jättipalsamia ei kuviolla juurikaan, vaikka ympäristössä runsas | K4: =AVERAGE(D4:I4) -> 0.6166666667
A5: 133 | B5: 3 | C5: 0.8 | D5: 1 | E5: 0.4 | F5: 1 | G5: 0.1 | H5: 0.5 | I5: 1 | J5: Pohjan rakenteesta ei tietoa, vanha jäteallas, maavallipatoja näkyvissä maastossa, ei muita huomattavia keinotekoisia rakenteita näkyvillä. Veden laatu todennäköisesti huono. Vehka runsas, osmankäämiä, suursaroja. | K5: 0.6666666667
A6: 423 | B6: 4 | C6: 0.6 | D6: 0.9 | E6: 0.7 | F6: 1 | G6: 0.6 | H6: 1 | I6: 1 | J6: Rakenteilla olevan laajan alueen kupeeseen perustettu hulevesialtaista koostuva kosteikko. Pohja todennäköisesti luonnollista maalajia (hiekkaa) ilman suodatinkankaita tms., mutta tästä ei varmuutta. Juuri perustettu, kasvillisuus vasta kehittymässä. Alimmassa altaassa jo kapeaosmankäämiä ja uistinvitaa, rannan hiekkaluiskalla mm. nurmikohokkia ja maitohorsmaa. Kosteikko on sivuojan kautta yhteydessä viereiseen metsäalueeseen. | K6: 0.8666666667
C7: =SUM(C3:C6) -> 1.62

Sheet Rakennetut vesialtaat
A1: Selitteet: | B1: Rivilaskuri | C1: Pinta-ala | D1: 1: runsaasti suojaavaa kasvillisuutta; 0,5: jonkin verran; 0,1: ei | E1: 1: molemmat piirteet; 0,7: 2 piirrettä; 0,1: ei kumpaakaan | F1: 1: ympäri vuoden; 0,5: kuivuu joina­kin viikkoina; 0,1: vettä vain hetkittäin | G1: 1: ei; 0,8: yksittäisiä; 0,3: useita; 0,1: alue laajalti
A2: Kuvio (ID) | B2: Rivi # | D2: Lähiympäristön tila | E2: Vesi- ja rantakasvillisuus | F2: Veden pysyvyys | G2: Haitalliset vieraskasvilajit | H2: Lisätietoja | I2: Ekologinen tila (keskiarvo)
A3: 464 | B3: =ROW()-2 -> 1 | C3: 1.7 | D3: 0.4 | E3: 0.1 | F3: 1 | G3: 0.7 | H3: Kaatopaikalla sijaitseva jonkinlainen jäteveden puhdistusallas(?). Ei vesi-, eikä rantakasveja näkyvissä rannan pajuja lukuun ottamatta. Veden laadusta ei tietoa, eikä altaan pohjamateriaalista. Altaan ympärillä normaalia joutomaan kasvillisuutta. | I3: =AVERAGE(D3:G3) -> 0.55

Sheet Teoll. viherympäristöt
A1: Selitteet: | B1: Rivilaskuri | D1: 1: soraa/hiekkaa/kalkkipit.; 0,5: muuta kiviainesta; 0,1: savea/tuhkaa/kuonaa | E1: 1: 3 piirrettä; 0,7: 2; 0,5: 1; 0,1: ei | F1: 1: ajoittaisia; 0,1: ympärivuorokautisia ja jatkuvia | G1: 1: tarjoaa lisääntymis-/elinympäristöä; 0,1: ei tarjoa | H1: 1: ei; 0,8: yksittäisiä; 0,3: useita; 0,1: alue laajalti
A2: Kuvio (ID) | B2: Rivi # | C2: Pinta-ala ha | D2: Maa-aineksen laatu | E2: Kasvillisuus | F2: Häiriöiden yleisyys | G2: Pesä- ja elinpaikat | H2: Haitalliset vieraskasvilajit | I2: Lisätietoja | J2: Ekologinen tila (keskiarvo)
A3: 252 | B3: =ROW()-2 -> 1 | C3: 0.6 | D3: 0.6 | E3: 0.3 | F3: 0.3 | G3: 0.1 | H3: 1 | J3: =AVERAGE(D3:H3) -> 0.46
A4: 344 | B4: 2 | C4: 6.9 | D4: 0.5 | E4: 0.6 | F4: 0.5 | G4: 0.2 | H4: 0.8 | I4: Aurinkovoimalan luona hyvää niittylajistoa. | J4: =AVERAGE(D4:H4) -> 0.52
A5: 359 | B5: 3 | C5: 16.8 | D5: 0.6 | E5: 0.6 | F5: 0.3 | G5: 0.1 | H5: 0.8 | I5: Louhoksen W-reunalla pieni esiintymä ketotuulenlentoa. | J5: 0.48
A6: 360 | B6: 4 | C6: 21.6 | D6: 0.7 | E6: 0.5 | F6: 0.6 | G6: 0.2 | H6: 0.3 | J6: 0.46
A7: 362 | B7: 5 | C7: 2.8 | D7: 0.7 | E7: 0.3 | F7: 0.2 | G7: 0.1 | H7: 1 | J7: 0.46
A8: 363 | B8: 6 | C8: 38.1 | D8: 0.8 | E8: 0.6 | F8: 0.7 | G8: 0.2 | H8: 0.4 | J8: 0.54
A9: 364 | B9: 7 | C9: 14.4 | D9: 1 | E9: 0.6 | F9: 0.4 | G9: 0.3 | H9: 0.9 | I9: Jatkuvasti muuttuva ja laajentuva alue, muutoksia tapahtui melko paljon maastokartoitusjaksojen välillä kesä-elokuussa. Hyviä hiekkaisia luiskia ja penkereitä. Länsipuolella pieni vastaperustettu hulevesikosteikko (423). Kaatopaikantien reunamilla hieman komealupiinia. | J9: 0.64
A10: 463 | B10: 8 | C10: 27.4 | D10: 0.3 | E10: 0.6 | F10: 0.2 | G10: 0.1 | H10: 0.6 | I10: Jätekukon kaatopaikka-alue. Suuri osa pinnasta asfalttia ja rakennuksia, mutta myös erilaisia jätemaakasoja, joutomaalänttejä ja maaperästä eristettyjä avonaisia jätteiden varastointialueita ja muita maa-aineskasoja. Runsaasti lokkeja ja korppeja. On mahdollista, että lokit voisivat pesiä jonkin rakennuksen katolla tai rakenteissa. | J10: 0.36
A11: 465 | B11: 9 | C11: 14.4 | D11: 0.3 | E11: 0.6 | F11: 1 | G11: 0.1 | H11: 0.4 | I11: Täyttömäki, sis. jätteitä, joista ei tarkempaa tietoa ja joka verhoiltu maa-aineksella. Typpilajiston ja vieraslajien peittämä alue (nokkonen, pelto-ohdake, kyläkarhiainen, jättipalsami, komealupiini, karhunköynnös, hierakat, seittitakiainen ). Jonkin verran liikennettä huipulle. Jätteet osin näkyvissä. | J11: 0.48
C12: =SUM(C3:C11) -> 143

Sheet SELITE KESKIARVO
A1: RYTY-kuvioiden ekologinen tila laskettiin mittareiden tilaluokkien keskiarvona kuten julkaisussa Puolitaival et al 2025 JYVÄSKYLÄN YLIOPISTON KAMPUSALUEIDEN EKOLOGINEN TILA JA LUONNONARVOHEHTAARIT 2025.

Sheet _valinnat (hidden)
A1: 1
A2: 0,9
A3: 0,8
A4: 0,7
A5: 0,6
A6: 0,5
A7: 0,4
A8: 0,3
A9: 0,2
A10: 0,1
A11: 0
